{"text_format":"1","workbook":"xlsx","n_sheets":3,"sheets":["Comunicação de contratos","Dados","Erros"],"not_rendered":{"charts":0,"images":0,"macros":0,"external_links":0,"defined_names":7,"comments":0,"pivot_tables":0},"unopened":[],"bounds":{"document_bytes":16777216,"sheet_cells":100000,"rows_first":2000,"rows_last":500,"rows_between":2000,"halvings":0,"cell_chars":16384,"cell_head_chars":4096},"cells_cut":0,"cells_raw":0,"read":"whole","date_system":"1900"}

{"sheet":"Comunicação de contratos","index":0,"n_rows":52,"n_cols":41,"rows_kept":52,"cut":false,"hidden":false,"merged":[[42,2,42,3],[45,2,45,3],[46,2,46,3],[45,4,45,6],[39,4,39,6],[42,4,42,6],[17,27,17,28],[17,18,17,19],[17,22,17,23],[17,13,17,14],[36,4,36,6],[36,2,36,3],[31,4,31,6],[31,2,31,3],[30,4,30,6],[30,2,30,3],[32,2,32,3],[35,2,35,3],[28,2,28,3],[33,2,33,3],[34,2,34,3],[29,2,29,3],[6,0,10,0],[27,4,27,6],[26,4,26,6],[22,4,22,6],[24,4,24,6],[25,4,25,6],[20,4,20,6],[17,16,18,16],[15,0,18,0],[17,12,18,12],[25,2,25,3],[26,2,26,3],[27,2,27,3],[21,2,21,3],[22,2,22,3],[23,2,23,3],[24,2,24,3],[15,7,16,9],[15,37,18,37],[19,2,19,3],[20,2,20,3],[17,39,17,41],[7,39,7,40],[51,33,51,36],[17,24,18,24],[17,25,18,25],[15,35,17,36],[17,32,18,32],[17,30,18,30],[15,30,16,32],[15,33,17,34],[17,31,18,31],[50,1,50,36],[21,4,21,6],[19,4,19,6],[23,4,23,6],[17,21,18,21],[17,26,18,26],[16,11,16,21],[17,11,18,11],[16,22,16,26],[49,1,49,11],[48,2,48,3],[47,2,47,3],[48,4,48,6],[39,2,39,3],[40,2,40,3],[41,2,41,3],[47,4,47,6],[28,4,28,6],[40,4,40,6],[29,4,29,6],[38,4,38,6],[32,4,32,6],[33,4,33,6],[41,4,41,6],[37,4,37,6],[44,4,44,6],[34,4,34,6],[35,4,35,6],[37,2,37,3],[38,2,38,3],[46,4,46,6],[43,4,43,6],[43,2,43,3],[44,2,44,3],[6,37,10,37],[0,1,0,36],[15,2,16,6],[17,4,18,6],[17,7,18,7],[17,8,18,8],[17,20,18,20],[5,1,5,36],[1,1,1,36],[7,2,7,3],[9,2,9,3],[11,1,11,36],[13,1,13,36],[17,17,18,17],[17,15,18,15],[16,29,18,29],[15,11,15,29],[15,1,18,1],[7,7,7,36],[9,5,9,36],[3,5,3,7],[17,2,18,3],[17,9,18,9],[17,10,18,10]]}
[null,"Comunicação de contratos de aquisição de serviços - Artigo 75.º, n.º 14, da LEO 2015 e art.º 4.º da Portaria n.º 20/2015, de 4 de Fevereiro"]
[null,"Identificação do processo  (a preencher por contratação de serviços)"]
[]
[null,"Nº Processo",null,"/C/2015","Data"]
[]
[null,"Caraterização do Serviço"]
[]
[null,"Cod. SIOE",null,null,"Ministério",null,null,{"$f":"IF(F8=\"\",\"\",VLOOKUP(F8,Dados!$Z$2:$AA$30,2,0))","v":""},null,null,null,null,null,null,null,null,null,null,null,null,null,null,null,null,null,null,null,null,null,null,null,null,null,null,null,null,null,null,null,"Reversão"]
[]
[null,"NIPC",null,null,"Serviço",null,null,null,null,null,null,null,null,null,null,null,null,null,null,null,null,null,null,null,null,null,null,null,null,null,null,null,null,null,null,null,null,null,null,"Ano","Valor"]
[]
[null,"Despacho",null,null,null,null,null,null,null,null,null,null,null,null,null,null,null,null,null,null,null,null,null,null,null,null,null,null,null,null,null,null,null,null,null,null,null,null,null,2015,0.2]
[]
[]
[]
[{"$f":"IF(A50=\"\",\"\",\"Erros\")","v":""},"Nº Processo/\n\n/Contrato","Modalidade de relação contratual",null,null,null,null,"Contrato",null,null,null,"Procedimento de Contratação Pública",null,null,null,null,null,null,null,null,null,null,null,null,null,null,null,null,null,null,"Identificação da Contraparte",null,null,"Verificada inexistência de trabalhadores em situação de requalificação",null,"Cabimento",null,{"$f":"IF(AL50=\"\",\"\",\"Erros\")","v":""}]
[null,null,null,null,null,null,null,null,null,null,null,"Valor global",null,null,null,null,null,null,null,null,null,null,"Valor mensal",null,null,null,null,null,null,"Reduzido com pareceres de dois anos anteriores c/redução\n(Valor igual ou inferior ao ano da última redução)/\n/Renovação de contrato já reduzido"]
[null,null,"Tipo",null,"Qual?",null,null,"Tipo","Objeto","Descrição","Vigência do contrato em dias","Tipo procedimento","Justificação tipo procedimento","Valor  global contratual antigo",null,"Valor  global contratual\n novo (s/iva)","Montante da redução  global alcançada","Percentagem redução  global aplicada","Percentagem da redução global devida",null,"Total anual prestador","Redução por agregação prestador","Valor  mensal contratual antigo",null,"Valor mensal contratual\nnovo (s/iva)","Montante da redução mensal alcançada","Percentagem redução mensal aplicada","Percentagem da redução mensal devida",null,null,"Denominação / Nome","NIPC/NIF","Tipo de entidade",null,null,null,null,null,null,"Formulas auxiliares"]
[null,null,null,null,null,null,null,null,null,null,null,null,null,"último ano c/redução\n(s/IVA)","outro ano c/redução\n(s/IVA)",null,null,null,"s/reversão","c/reversão",null,null,"último ano c/redução\n(s/IVA)","outro ano c/redução\n(s/IVA)",null,null,null,"s/reversão","c/reversão",null,null,null,null,"S/N","Anexar\ndocumento","S/N","Anexar\ndocumento"]
[{"$f":"IF(Erros!A2=0,\"\",Erros!A2)","v":""},{"$f":"IF(OR($C$4=\"\",AND(C20=\"\",H20=\"\",I20=\"\",J20=\"\",K20=\"\",L20=\"\",U20=\"\",V20=\"\",AE20=\"\",AF20=\"\",AG20=\"\",AJ20=\"\")),\"\",$C$4&\"-\"&AM20&$D$4)","v":""},null,null,null,null,null,null,null,null,null,null,null,null,null,null,{"$f":"IF(OR(N20=\"\",P20=\"\"),\"\",N20-P20)","v":""},{"$f":"IF(OR(N20=\"\",P20=\"\"),\"\",IF(AND(N20=0,Q20<>\"\"),0,ROUND(IF(N20=\"\",\"\",1-P20/N20),4)))","v":""},{"$f":"ROUND(IF(N20<=1500,0,IF(AND(N20>1500,N20<=2000),N20*0.035/N20,IF(AND(N20>2000,N20<=4165),(((N20-2000)*0.16)+(2000*0.035))/N20,N20*0.1/N20))),4)","v":0},{"$f":"S20-S20*$AO$12","v":0},null,null,null,null,null,{"$f":"IF(OR(W20=\"\",Y20=\"\"),\"\",W20-Y20)","v":""},{"$f":"IF(OR(W20=\"\",Y20=\"\"),\"\",IF(AND(W20=0,Y20<>\"\"),0,ROUND(IF(W20=\"\",\"\",1-Y20/W20),4)))","v":""},{"$f":"ROUND(IF(W20<=1500,0,IF(AND(W20>1500,W20<=2000),W20*0.035/W20,IF(AND(W20>2000,W20<=4165),(((W20-2000)*0.16)+(2000*0.035))/W20,W20*0.1/W20))),4)","v":0},{"$f":"AB20-AB20*$AO$12","v":0},null,null,null,null,null,null,null,null,{"$f":"IF(Erros!A2=0,\"\",Erros!A2)","v":""},"01",{"$f":"IF(COUNTBLANK(C20:AK20)=31,\"Vazio\",\"Dados\")","v":"Vazio"},{"$f":"IF(AN20=\"Vazio\",\"\",IF(OR(AND(C20=\"Outras aquisições de serviços\",E20=\"\"),AND(C20=\"Avença\",OR(W20=\"\",X20=\"\",Y20=\"\"))),\"Incompleto\",IF(AND(C20<>\"\",H20<>\"\",I20<>\"\",J20<>\"\",K20<>\"\",L20<>\"\",M20<>\"\",N20<>\"\",O20<>\"\",P20<>\"\",U20<>\"\",V20<>\"\",AD20<>\"\",AE20<>\"\",AF20<>\"\",AG20<>\"\",AH20<>\"\",AJ20<>\"\"),\"Completo\",\"Incompleto\")))","v":""}]
[{"$f":"IF(Erros!A3=0,\"\",Erros!A3)","v":""},{"$f":"IF(OR($C$4=\"\",AND(C21=\"\",H21=\"\",I21=\"\",J21=\"\",K21=\"\",L21=\"\",U21=\"\",V21=\"\",AE21=\"\",AF21=\"\",AG21=\"\",AJ21=\"\")),\"\",$C$4&\"-\"&AM21&$D$4)","v":""},null,null,null,null,null,null,null,null,null,null,null,null,null,null,{"$f":"IF(OR(N21=\"\",P21=\"\"),\"\",N21-P21)","v":""},"",0,0,null,null,null,null,null,{"$f":"IF(OR(W21=\"\",Y21=\"\"),\"\",W21-Y21)","v":""},{"$f":"IF(OR(W21=\"\",Y21=\"\"),\"\",IF(AND(W21=0,Y21<>\"\"),0,ROUND(IF(W21=\"\",\"\",1-Y21/W21),4)))","v":""},{"$f":"ROUND(IF(W21<=1500,0,IF(AND(W21>1500,W21<=2000),W21*0.035/W21,IF(AND(W21>2000,W21<=4165),(((W21-2000)*0.16)+(2000*0.035))/W21,W21*0.1/W21))),4)","v":0},0,null,null,null,null,null,null,null,null,{"$f":"IF(Erros!A3=0,\"\",Erros!A3)","v":""},"02",{"$f":"IF(COUNTBLANK(C21:AK21)=31,\"Vazio\",\"Dados\")","v":"Vazio"},{"$f":"IF(AN21=\"Vazio\",\"\",IF(OR(AND(C21=\"Outras aquisições de serviços\",E21=\"\"),AND(C21=\"Avença\",OR(W21=\"\",X21=\"\",Y21=\"\"))),\"Incompleto\",IF(AND(C21<>\"\",H21<>\"\",I21<>\"\",J21<>\"\",K21<>\"\",L21<>\"\",M21<>\"\",N21<>\"\",O21<>\"\",P21<>\"\",U21<>\"\",V21<>\"\",AD21<>\"\",AE21<>\"\",AF21<>\"\",AG21<>\"\",AH21<>\"\",AJ21<>\"\"),\"Completo\",\"Incompleto\")))","v":""}]
[{"$f":"IF(Erros!A4=0,\"\",Erros!A4)","v":""},"",null,null,null,null,null,null,null,null,null,null,null,null,null,null,"","",0,0,null,null,null,null,null,"","",0,0,null,null,null,null,null,null,null,null,{"$f":"IF(Erros!A4=0,\"\",Erros!A4)","v":""},"03","Vazio",""]
[{"$f":"IF(Erros!A5=0,\"\",Erros!A5)","v":""},"",null,null,null,null,null,null,null,null,null,null,null,null,null,null,"","",0,0,null,null,null,null,null,"","",0,0,null,null,null,null,null,null,null,null,{"$f":"IF(Erros!A5=0,\"\",Erros!A5)","v":""},"04","Vazio",""]
[{"$f":"IF(Erros!A6=0,\"\",Erros!A6)","v":""},"",null,null,null,null,null,null,null,null,null,null,null,null,null,null,"","",0,0,null,null,null,null,null,"","",0,0,null,null,null,null,null,null,null,null,{"$f":"IF(Erros!A6=0,\"\",Erros!A6)","v":""},"05","Vazio",""]
[{"$f":"IF(Erros!A7=0,\"\",Erros!A7)","v":""},"",null,null,null,null,null,null,null,null,null,null,null,null,null,null,"","",0,0,null,null,null,null,null,"","",0,0,null,null,null,null,null,null,null,null,{"$f":"IF(Erros!A7=0,\"\",Erros!A7)","v":""},"06","Vazio",""]
[{"$f":"IF(OR(Erros!A8=\"#DIV/0!\",Erros!A8=0),\"\",Erros!A8)","v":""},"",null,null,null,null,null,null,null,null,null,null,null,null,null,null,"",{"$f":"IF(OR(N26=\"\",P26=\"\"),\"\",IF(AND(N26=0,Q26<>\"\"),0,ROUND(IF(N26=\"\",\"\",1-P26/N26),4)))","v":""},0,0,null,null,null,null,null,"","",0,0,null,null,null,null,null,null,null,null,{"$f":"IF(Erros!A8=0,\"\",Erros!A8)","v":""},"07","Vazio",""]
[{"$f":"IF(Erros!A9=0,\"\",Erros!A9)","v":""},"",null,null,null,null,null,null,null,null,null,null,null,null,null,null,"",{"$f":"IF(OR(N27=\"\",P27=\"\"),\"\",IF(AND(N27=0,Q27<>\"\"),0,ROUND(IF(N27=\"\",\"\",1-P27/N27),4)))","v":""},0,0,null,null,null,null,null,"","",0,0,null,null,null,null,null,null,null,null,{"$f":"IF(Erros!A9=0,\"\",Erros!A9)","v":""},"08","Vazio",""]
[{"$f":"IF(Erros!A10=0,\"\",Erros!A10)","v":""},"",null,null,null,null,null,null,null,null,null,null,null,null,null,null,"","",0,0,null,null,null,null,null,"","",0,0,null,null,null,null,null,null,null,null,{"$f":"IF(Erros!A10=0,\"\",Erros!A10)","v":""},"09","Vazio",""]
[{"$f":"IF(Erros!A11=0,\"\",Erros!A11)","v":""},"",null,null,null,null,null,null,null,null,null,null,null,null,null,null,"","",0,0,null,null,null,null,null,"","",0,0,null,null,null,null,null,null,null,null,{"$f":"IF(Erros!A11=0,\"\",Erros!A11)","v":""},"10","Vazio",""]
[{"$f":"IF(Erros!A12=0,\"\",Erros!A12)","v":""},"",null,null,null,null,null,null,null,null,null,null,null,null,null,null,"","",0,0,null,null,null,null,null,"","",0,0,null,null,null,null,null,null,null,null,{"$f":"IF(Erros!A12=0,\"\",Erros!A12)","v":""},"11","Vazio",""]
[{"$f":"IF(Erros!A13=0,\"\",Erros!A13)","v":""},"",null,null,null,null,null,null,null,null,null,null,null,null,null,null,"","",0,0,null,null,null,null,null,"","",0,0,null,null,null,null,null,null,null,null,{"$f":"IF(Erros!A13=0,\"\",Erros!A13)","v":""},"12","Vazio",""]
[{"$f":"IF(Erros!A14=0,\"\",Erros!A14)","v":""},"",null,null,null,null,null,null,null,null,null,null,null,null,null,null,"","",0,0,null,null,null,null,null,"","",0,0,null,null,null,null,null,null,null,null,{"$f":"IF(Erros!A14=0,\"\",Erros!A14)","v":""},"13","Vazio",""]
[{"$f":"IF(Erros!A15=0,\"\",Erros!A15)","v":""},"",null,null,null,null,null,null,null,null,null,null,null,null,null,null,"","",0,0,null,null,null,null,null,"","",0,0,null,null,null,null,null,null,null,null,{"$f":"IF(Erros!A15=0,\"\",Erros!A15)","v":""},"14","Vazio",""]
[{"$f":"IF(Erros!A16=0,\"\",Erros!A16)","v":""},"",null,null,null,null,null,null,null,null,null,null,null,null,null,null,"","",0,0,null,null,null,null,null,"","",0,0,null,null,null,null,null,null,null,null,{"$f":"IF(Erros!A16=0,\"\",Erros!A16)","v":""},"15","Vazio",""]
[{"$f":"IF(Erros!A17=0,\"\",Erros!A17)","v":""},"",null,null,null,null,null,null,null,null,null,null,null,null,null,null,"","",0,0,null,null,null,null,null,"","",0,0,null,null,null,null,null,null,null,null,{"$f":"IF(Erros!A17=0,\"\",Erros!A17)","v":""},"16","Vazio",""]
[{"$f":"IF(Erros!A18=0,\"\",Erros!A18)","v":""},"",null,null,null,null,null,null,null,null,null,null,null,null,null,null,"","",0,0,null,null,null,null,null,"","",0,0,null,null,null,null,null,null,null,null,{"$f":"IF(Erros!A18=0,\"\",Erros!A18)","v":""},"17","Vazio",""]
[{"$f":"IF(Erros!A19=0,\"\",Erros!A19)","v":""},"",null,null,null,null,null,null,null,null,null,null,null,null,null,null,"","",0,0,null,null,null,null,null,"","",0,0,null,null,null,null,null,null,null,null,{"$f":"IF(Erros!A19=0,\"\",Erros!A19)","v":""},"18","Vazio",""]
[{"$f":"IF(Erros!A20=0,\"\",Erros!A20)","v":""},"",null,null,null,null,null,null,null,null,null,null,null,null,null,null,"","",0,0,null,null,null,null,null,"","",0,0,null,null,null,null,null,null,null,null,{"$f":"IF(Erros!A20=0,\"\",Erros!A20)","v":""},"19","Vazio",""]
[{"$f":"IF(Erros!A21=0,\"\",Erros!A21)","v":""},"",null,null,null,null,null,null,null,null,null,null,null,null,null,null,"","",0,0,null,null,null,null,null,"","",0,0,null,null,null,null,null,null,null,null,{"$f":"IF(Erros!A21=0,\"\",Erros!A21)","v":""},"20","Vazio",""]
[{"$f":"IF(Erros!A22=0,\"\",Erros!A22)","v":""},"",null,null,null,null,null,null,null,null,null,null,null,null,null,null,"","",0,0,null,null,null,null,null,"","",0,0,null,null,null,null,null,null,null,null,{"$f":"IF(Erros!A22=0,\"\",Erros!A22)","v":""},"21","Vazio",""]
[{"$f":"IF(Erros!A23=0,\"\",Erros!A23)","v":""},"",null,null,null,null,null,null,null,null,null,null,null,null,null,null,"","",0,0,null,null,null,null,null,"","",0,0,null,null,null,null,null,null,null,null,{"$f":"IF(Erros!A23=0,\"\",Erros!A23)","v":""},"22","Vazio",""]
[{"$f":"IF(Erros!A24=0,\"\",Erros!A24)","v":""},"",null,null,null,null,null,null,null,null,null,null,null,null,null,null,"","",0,0,null,null,null,null,null,"","",0,0,null,null,null,null,null,null,null,null,{"$f":"IF(Erros!A24=0,\"\",Erros!A24)","v":""},"23","Vazio",""]
[{"$f":"IF(Erros!A25=0,\"\",Erros!A25)","v":""},"",null,null,null,null,null,null,null,null,null,null,null,null,null,null,"","",0,0,null,null,null,null,null,"","",0,0,null,null,null,null,null,null,null,null,{"$f":"IF(Erros!A25=0,\"\",Erros!A25)","v":""},"24","Vazio",""]
[{"$f":"IF(Erros!A26=0,\"\",Erros!A26)","v":""},"",null,null,null,null,null,null,null,null,null,null,null,null,null,null,"","",0,0,null,null,null,null,null,"","",0,0,null,null,null,null,null,null,null,null,{"$f":"IF(Erros!A26=0,\"\",Erros!A26)","v":""},"25","Vazio",""]
[{"$f":"IF(Erros!A27=0,\"\",Erros!A27)","v":""},"",null,null,null,null,null,null,null,null,null,null,null,null,null,null,"","",0,0,null,null,null,null,null,"","",0,0,null,null,null,null,null,null,null,null,{"$f":"IF(Erros!A27=0,\"\",Erros!A27)","v":""},"26","Vazio",""]
[{"$f":"IF(Erros!A28=0,\"\",Erros!A28)","v":""},"",null,null,null,null,null,null,null,null,null,null,null,null,null,null,"","",0,0,null,null,null,null,null,"","",0,0,null,null,null,null,null,null,null,null,{"$f":"IF(Erros!A28=0,\"\",Erros!A28)","v":""},"27","Vazio",""]
[{"$f":"IF(Erros!A29=0,\"\",Erros!A29)","v":""},"",null,null,null,null,null,null,null,null,null,null,null,null,null,null,"","",0,0,null,null,null,null,null,"","",0,0,null,null,null,null,null,null,null,null,{"$f":"IF(Erros!A29=0,\"\",Erros!A29)","v":""},"28","Vazio",""]
[{"$f":"IF(Erros!A30=0,\"\",Erros!A30)","v":""},"",null,null,null,null,null,null,null,null,null,null,null,null,null,null,"","",0,0,null,null,null,null,null,"","",0,0,null,null,null,null,null,null,null,null,{"$f":"IF(Erros!A30=0,\"\",Erros!A30)","v":""},"29","Vazio",""]
[{"$f":"IF(Erros!A31=0,\"\",Erros!A31)","v":""},"",null,null,null,null,null,null,null,null,null,null,null,null,null,null,"","",0,0,null,null,null,null,null,"","",0,0,null,null,null,null,null,null,null,null,{"$f":"IF(Erros!A31=0,\"\",Erros!A31)","v":""},"30","Vazio",""]
[{"$f":"IF(SUM(A20:A49)=0,\"\",SUM(A20:A49))","v":""},"TOTAL",null,null,null,null,null,null,null,null,null,null,null,{"$f":"SUM(N20:N49)","v":0},{"$f":"SUM(O20:O49)","v":0},{"$f":"SUM(P20:P49)","v":0},{"$f":"SUM(Q20:Q49)","v":0},null,null,null,null,null,{"$f":"SUM(W20:W49)","v":0},{"$f":"SUM(X20:X49)","v":0},{"$f":"SUM(Y20:Y49)","v":0},{"$f":"SUM(Z20:Z49)","v":0},null,null,null,null,null,null,null,null,null,null,null,{"$f":"IF(SUM(AL20:AL49)=0,\"\",SUM(AL20:AL49))","v":""}]
[null,{"$f":"IF(OR(C8=\"\",C10=\"\",F8=\"\",F10=\"\",A50<>\"\",COUNTBLANK(C20:AK49)=960),\"O formulário não está em condições de ser submetido pois contém campos de preenchimento obrigatório que estão vazios ou contém erros de preenchimento.\",IF(AN51=\"Vazio\",\"O formulário não está em condições de ser submetido pois não contem qualquer informação referente às aquisições\",\"O formulário está em condições de ser submetido.\"))","v":"O formulário não está em condições de ser submetido pois contém campos de preenchimento obrigatório que estão vazios ou contém erros de preenchimento."},null,null,null,null,null,null,null,null,null,null,null,null,null,null,null,null,null,null,null,null,null,null,null,null,null,null,null,null,null,null,null,null,null,null,null,null,null,{"$f":"IF(COUNTIF(AN20:AN49,\"Vazio\")=30,\"Vazio\",\"Dados\")","v":"Vazio"}]
[null,null,null,null,null,null,null,null,null,null,null,null,null,null,null,null,null,null,null,null,null,null,null,null,null,null,null,null,null,null,null,null,null,"DRJE/DGSI 2015 - V01.01 (OE2015)"]

{"sheet":"Dados","index":1,"n_rows":30,"n_cols":33,"rows_kept":30,"cut":false,"hidden":true,"merged":[]}
["Modalidade contratual",null,null,"Tipo de atividade",null,null,"Área de atividade",null,null,"Não aplicável",null,null,"Tipo",null,null,"Tipo",null,null,"Situação tipo",null,null,"Declaração de incompatibilidades/impedimentos",null,null,"Ministérios",null,null,null,"Incompatibilidade",null,null,"Tipo Contrato"]
[null,"Avença",null,null,"Assistência / manutenção",null,null,"Ambiente",null,null,"Já foi objeto de redução no ano anterior",null,null,"Ajuste direto",null,null,"Pessoa coletiva",null,null,"Ação de Formação (<= 132 horas)",null,null,"Sim",null,null,"-","-",null,null,"Não há relação/participação de ex-colaboradores, cônjuge, parente ou afim em linha reta ou até 2º grau da linha colateral ou de qualquer pessoa com quem viva",null,null,"Celebração"]
[null,"Tarefa",null,null,"Consultadoria técnica",null,null,"Animação cultural, recreativa, turística",null,null,"Não atinge o montante mínimo para redução",null,null,"Ajuste direto simplificado",null,null,"Pessoa singular",null,null,"Prestação de Serviço de execução (até 20 dias)",null,null,"Não ",null,null,"MAI","Ministério da Administração Interna",null,null,"Há relação/participação de ex-colaboradores, cônjuge, parente ou afim em linha reta ou até 2º grau da linha colateral ou de qualquer pessoa com quem viva em economia comum",null,null,"Renovação"]
[null,"Outras aquisições de serviços",null,null,"Outro",null,null,"Arquitetura",null,null,"Não existiu contrato anterior",null,null,null,null,null,"Sociedade unipessoal",null,null,"Manutenção/Assistência Técnica a máquinas, equipamentos ou instalações",null,null,null,null,null,"MAM","Ministério da Agricultura e do Mar"]
[null,null,null,null,null,null,null,"Assessoria económica e ou financeira",null,null,null,null,null,null,null,null,null,null,null,null,null,null,null,null,null,"MAM/MAOTE","Ministério da Agricultura e do Mar/Ministério do Ambiente, Ordenamento do Território e Energia"]
[null,null,null,null,null,null,null,"Comunicação",null,null,null,null,null,null,null,null,null,null,null,null,null,null,null,null,null,"MAOTE","Ministério do Ambiente, Ordenamento do Território e Energia"]
[null,null,null,null,null,null,null,"Contabilidade",null,null,null,null,null,null,null,null,null,null,null,null,null,null,null,null,null,"MAOTE/MAM","Ministério do Ambiente, Ordenamento do Território e Energia/Ministério da Agricultura e do Mar"]
[null,null,null,null,null,null,null,"Design",null,null,null,null,null,null,null,null,null,null,null,null,null,null,null,null,null,"MDN","Ministério da Defesa Nacional"]
[null,null,null,null,null,null,null,"Engenharia",null,null,null,null,null,null,null,null,null,null,null,null,null,null,null,null,null,"MDN/MDN","Ministério da Defesa Nacional/Ministério da Defesa Nacional"]
[null,null,null,null,null,null,null,"Formação",null,null,null,null,null,null,null,null,null,null,null,null,null,null,null,null,null,"ME","Ministério da Economia"]
[null,null,null,null,null,null,null,"Gestão",null,null,null,null,null,null,null,null,null,null,null,null,null,null,null,null,null,"ME/MAM","Ministério da Economia/Ministério da Agricultura e do Mar"]
[null,null,null,null,null,null,null,"Higiene e limpeza",null,null,null,null,null,null,null,null,null,null,null,null,null,null,null,null,null,"ME/MEC","Ministério da Economia/Ministério da Educação e Ciência"]
[null,null,null,null,null,null,null,"Informática",null,null,null,null,null,null,null,null,null,null,null,null,null,null,null,null,null,"MEC","Ministério da Educação e Ciência"]
[null,null,null,null,null,null,null,"Jurídica",null,null,null,null,null,null,null,null,null,null,null,null,null,null,null,null,null,"MEC/ME/MSESS","Ministério da Educação e Ciência/Ministério da Economia/Ministério da Solidariedade, Emprego e Segurança Social"]
[null,null,null,null,null,null,null,"Máquinas, equipamentos ou instalações",null,null,null,null,null,null,null,null,null,null,null,null,null,null,null,null,null,"MEC/MF","Ministério da Educação e Ciência/Ministério das Finanças"]
[null,null,null,null,null,null,null,"Psicologia",null,null,null,null,null,null,null,null,null,null,null,null,null,null,null,null,null,"MF","Ministério das Finanças"]
[null,null,null,null,null,null,null,"Publicidade",null,null,null,null,null,null,null,null,null,null,null,null,null,null,null,null,null,"MJ","Ministério da Justiça"]
[null,null,null,null,null,null,null,"Saúde",null,null,null,null,null,null,null,null,null,null,null,null,null,null,null,null,null,"MJ/MJ","Ministério da Justiça/Ministério da Justiça"]
[null,null,null,null,null,null,null,"Segurança",null,null,null,null,null,null,null,null,null,null,null,null,null,null,null,null,null,"MNE","Ministério dos Negócios Estrangeiros"]
[null,null,null,null,null,null,null,"Técnico-administrativa",null,null,null,null,null,null,null,null,null,null,null,null,null,null,null,null,null,"MS","Ministério da Saúde"]
[null,null,null,null,null,null,null,"Outra",null,null,null,null,null,null,null,null,null,null,null,null,null,null,null,null,null,"MS/MS","Ministério da Saúde/Ministério da Saúde"]
[null,null,null,null,null,null,null,null,null,null,null,null,null,null,null,null,null,null,null,null,null,null,null,null,null,"MSESS","Ministério da Solidariedade, Emprego e Segurança Social"]
[null,null,null,null,null,null,null,null,null,null,null,null,null,null,null,null,null,null,null,null,null,null,null,null,null,"MSESS/ME","Ministério da Solidariedade, Emprego e Segurança Social/Ministério da Economia"]
[null,null,null,null,null,null,null,null,null,null,null,null,null,null,null,null,null,null,null,null,null,null,null,null,null,"MSESS/ME/MF","Ministério da Solidariedade, Emprego e Segurança Social/Ministério da Economia/Ministério das Finanças"]
[null,null,null,null,null,null,null,null,null,null,null,null,null,null,null,null,null,null,null,null,null,null,null,null,null,"MSESS/MEC","Ministério da Solidariedade, Emprego e Segurança Social/Ministério da Educação e Ciência"]
[null,null,null,null,null,null,null,null,null,null,null,null,null,null,null,null,null,null,null,null,null,null,null,null,null,"MSESS/MF","Ministério da Solidariedade, Emprego e Segurança Social/Ministério das Finanças"]
[null,null,null,null,null,null,null,null,null,null,null,null,null,null,null,null,null,null,null,null,null,null,null,null,null,"OSEI","Órgãos de Soberania e Entidades Independentes"]
[null,null,null,null,null,null,null,null,null,null,null,null,null,null,null,null,null,null,null,null,null,null,null,null,null,"PCM","Presidência do Conselho de Ministros"]
[null,null,null,null,null,null,null,null,null,null,null,null,null,null,null,null,null,null,null,null,null,null,null,null,null,"PCM/MAOTE","Presidência do Conselho de Ministros/Ministério do Ambiente, Ordenamento do Território e Energia"]
[null,null,null,null,null,null,null,null,null,null,null,null,null,null,null,null,null,null,null,null,null,null,null,null,null,"PCM/MEC/ME/MSESS","Presidência do Conselho de Ministros/Ministério da Educação e Ciência/Ministério da Economia/Ministério da Solidariedade, Emprego e Segurança Social"]

{"sheet":"Erros","index":2,"n_rows":31,"n_cols":17,"rows_kept":31,"cut":false,"hidden":false,"merged":[]}
["Nº de Erros","n.º da Linha","Nº Contrato",null,"Campos por preencher",null,"1-Modalidade de relação contratual",null,"2-Valor  global contratual novo (s/iva)",null,"3-Percentagem redução  global aplicada",null,"4-Valor mensal contratual novo (s/iva)",null,"5-Percentagem redução mensal aplicada",null,"6-Total anual prestador"]
[{"$f":"SUM(D2:Q2)","v":0},{"$f":"IF(A2>0,ROW('Comunicação de contratos'!B20),\"\")","v":""},{"$f":"'Comunicação de contratos'!B20","v":""},{"$f":"IF(E2=\"\",0,1)","v":0},{"$f":"IF('Comunicação de contratos'!AO20=\"Incompleto\",\"Existem campos por preencher\",\"\")","v":""},{"$f":"IF(G2=\"\",0,1)","v":0},{"$f":"IF(AND('Comunicação de contratos'!C20=\"Outras prestações de serviços\",'Comunicação de contratos'!E20=\"\"),\"Modalidade Contratual não identificada\",\"\")","v":""},{"$f":"IF(I2=\"\",0,1)","v":0},{"$f":"IF('Comunicação de contratos'!P20>5000,\"O valor global é superior a 5 000,00€\",\"\")","v":""},{"$f":"IF(K2=\"\",0,1)","v":0},{"$f":"IF('Comunicação de contratos'!P20<=1500,\"\",IF('Comunicação de contratos'!R20<'Comunicação de contratos'!T20,\"Redução global não foi verificada\",\"\"))","v":""},{"$f":"IF(M2=\"\",0,1)","v":0},{"$f":"IF('Comunicação de contratos'!Y20>5000,\"O valor Mensal é superior a 5 000,00€\",\"\")","v":""},{"$f":"IF(O2=\"\",0,1)","v":0},{"$f":"IF('Comunicação de contratos'!Y20<=1500,\"\",IF('Comunicação de contratos'!AA20<'Comunicação de contratos'!AC20,\"Redução mensal não verificada\",\"\"))","v":""},{"$f":"IF(Q2=\"\",0,1)","v":0},{"$f":"IF('Comunicação de contratos'!U20>5000,\"O valor total anual prestador é superior a 5 000,00€\",\"\")","v":""}]
[{"$f":"SUM(D3:Q3)","v":0},{"$f":"IF(A3>0,ROW('Comunicação de contratos'!B21),\"\")","v":""},{"$f":"'Comunicação de contratos'!B21","v":""},{"$f":"IF(E3=\"\",0,1)","v":0},{"$f":"IF('Comunicação de contratos'!AO21=\"Incompleto\",\"Existem campos por preencher\",\"\")","v":""},{"$f":"IF(G3=\"\",0,1)","v":0},{"$f":"IF(AND('Comunicação de contratos'!C21=\"Outras prestações de serviços\",'Comunicação de contratos'!E21=\"\"),\"Modalidade Contratual não identificada\",\"\")","v":""},{"$f":"IF(I3=\"\",0,1)","v":0},{"$f":"IF('Comunicação de contratos'!P21>5000,\"O valor global é superior a 5 000,00€\",\"\")","v":""},{"$f":"IF(K3=\"\",0,1)","v":0},{"$f":"IF('Comunicação de contratos'!P21<=1500,\"\",IF('Comunicação de contratos'!R21<'Comunicação de contratos'!T21,\"Redução global não foi verificada\",\"\"))","v":""},{"$f":"IF(M3=\"\",0,1)","v":0},{"$f":"IF('Comunicação de contratos'!Y21>5000,\"O valor Mensal é superior a 5 000,00€\",\"\")","v":""},{"$f":"IF(O3=\"\",0,1)","v":0},{"$f":"IF('Comunicação de contratos'!Y21<=1500,\"\",IF('Comunicação de contratos'!AA21<'Comunicação de contratos'!AC21,\"Redução mensal não verificada\",\"\"))","v":""},{"$f":"IF(Q3=\"\",0,1)","v":0},{"$f":"IF('Comunicação de contratos'!U21>5000,\"O valor total anual prestador é superior a 5 000,00€\",\"\")","v":""}]
[0,{"$f":"IF(A4>0,ROW('Comunicação de contratos'!B22),\"\")","v":""},{"$f":"'Comunicação de contratos'!B22","v":""},0,{"$f":"IF('Comunicação de contratos'!AO22=\"Incompleto\",\"Existem campos por preencher\",\"\")","v":""},0,{"$f":"IF(AND('Comunicação de contratos'!C22=\"Outras prestações de serviços\",'Comunicação de contratos'!E22=\"\"),\"Modalidade Contratual não identificada\",\"\")","v":""},0,{"$f":"IF('Comunicação de contratos'!P22>5000,\"O valor global é superior a 5 000,00€\",\"\")","v":""},0,{"$f":"IF('Comunicação de contratos'!P22<=1500,\"\",IF('Comunicação de contratos'!R22<'Comunicação de contratos'!T22,\"Redução global não foi verificada\",\"\"))","v":""},0,{"$f":"IF('Comunicação de contratos'!Y22>5000,\"O valor Mensal é superior a 5 000,00€\",\"\")","v":""},0,{"$f":"IF('Comunicação de contratos'!Y22<=1500,\"\",IF('Comunicação de contratos'!AA22<'Comunicação de contratos'!AC22,\"Redução mensal não verificada\",\"\"))","v":""},0,{"$f":"IF('Comunicação de contratos'!U22>5000,\"O valor total anual prestador é superior a 5 000,00€\",\"\")","v":""}]
[0,{"$f":"IF(A5>0,ROW('Comunicação de contratos'!B23),\"\")","v":""},{"$f":"'Comunicação de contratos'!B23","v":""},0,{"$f":"IF('Comunicação de contratos'!AO23=\"Incompleto\",\"Existem campos por preencher\",\"\")","v":""},0,{"$f":"IF(AND('Comunicação de contratos'!C23=\"Outras prestações de serviços\",'Comunicação de contratos'!E23=\"\"),\"Modalidade Contratual não identificada\",\"\")","v":""},0,{"$f":"IF('Comunicação de contratos'!P23>5000,\"O valor global é superior a 5 000,00€\",\"\")","v":""},0,{"$f":"IF('Comunicação de contratos'!P23<=1500,\"\",IF('Comunicação de contratos'!R23<'Comunicação de contratos'!T23,\"Redução global não foi verificada\",\"\"))","v":""},0,{"$f":"IF('Comunicação de contratos'!Y23>5000,\"O valor Mensal é superior a 5 000,00€\",\"\")","v":""},0,{"$f":"IF('Comunicação de contratos'!Y23<=1500,\"\",IF('Comunicação de contratos'!AA23<'Comunicação de contratos'!AC23,\"Redução mensal não verificada\",\"\"))","v":""},0,{"$f":"IF('Comunicação de contratos'!U23>5000,\"O valor total anual prestador é superior a 5 000,00€\",\"\")","v":""}]
[0,{"$f":"IF(A6>0,ROW('Comunicação de contratos'!B24),\"\")","v":""},{"$f":"'Comunicação de contratos'!B24","v":""},0,{"$f":"IF('Comunicação de contratos'!AO24=\"Incompleto\",\"Existem campos por preencher\",\"\")","v":""},0,{"$f":"IF(AND('Comunicação de contratos'!C24=\"Outras prestações de serviços\",'Comunicação de contratos'!E24=\"\"),\"Modalidade Contratual não identificada\",\"\")","v":""},0,{"$f":"IF('Comunicação de contratos'!P24>5000,\"O valor global é superior a 5 000,00€\",\"\")","v":""},0,{"$f":"IF('Comunicação de contratos'!P24<=1500,\"\",IF('Comunicação de contratos'!R24<'Comunicação de contratos'!T24,\"Redução global não foi verificada\",\"\"))","v":""},0,{"$f":"IF('Comunicação de contratos'!Y24>5000,\"O valor Mensal é superior a 5 000,00€\",\"\")","v":""},0,{"$f":"IF('Comunicação de contratos'!Y24<=1500,\"\",IF('Comunicação de contratos'!AA24<'Comunicação de contratos'!AC24,\"Redução mensal não verificada\",\"\"))","v":""},0,{"$f":"IF('Comunicação de contratos'!U24>5000,\"O valor total anual prestador é superior a 5 000,00€\",\"\")","v":""}]
[0,{"$f":"IF(A7>0,ROW('Comunicação de contratos'!B25),\"\")","v":""},{"$f":"'Comunicação de contratos'!B25","v":""},0,{"$f":"IF('Comunicação de contratos'!AO25=\"Incompleto\",\"Existem campos por preencher\",\"\")","v":""},0,{"$f":"IF(AND('Comunicação de contratos'!C25=\"Outras prestações de serviços\",'Comunicação de contratos'!E25=\"\"),\"Modalidade Contratual não identificada\",\"\")","v":""},0,{"$f":"IF('Comunicação de contratos'!P25>5000,\"O valor global é superior a 5 000,00€\",\"\")","v":""},0,{"$f":"IF('Comunicação de contratos'!P25<=1500,\"\",IF('Comunicação de contratos'!R25<'Comunicação de contratos'!T25,\"Redução global não foi verificada\",\"\"))","v":""},0,{"$f":"IF('Comunicação de contratos'!Y25>5000,\"O valor Mensal é superior a 5 000,00€\",\"\")","v":""},0,{"$f":"IF('Comunicação de contratos'!Y25<=1500,\"\",IF('Comunicação de contratos'!AA25<'Comunicação de contratos'!AC25,\"Redução mensal não verificada\",\"\"))","v":""},0,{"$f":"IF('Comunicação de contratos'!U25>5000,\"O valor total anual prestador é superior a 5 000,00€\",\"\")","v":""}]
[0,{"$f":"IF(A8>0,ROW('Comunicação de contratos'!B26),\"\")","v":""},{"$f":"'Comunicação de contratos'!B26","v":""},0,{"$f":"IF('Comunicação de contratos'!AO26=\"Incompleto\",\"Existem campos por preencher\",\"\")","v":""},0,{"$f":"IF(AND('Comunicação de contratos'!C26=\"Outras prestações de serviços\",'Comunicação de contratos'!E26=\"\"),\"Modalidade Contratual não identificada\",\"\")","v":""},0,{"$f":"IF('Comunicação de contratos'!P26>5000,\"O valor global é superior a 5 000,00€\",\"\")","v":""},0,{"$f":"IF('Comunicação de contratos'!P26<=1500,\"\",IF('Comunicação de contratos'!R26<'Comunicação de contratos'!T26,\"Redução global não foi verificada\",\"\"))","v":""},0,{"$f":"IF('Comunicação de contratos'!Y26>5000,\"O valor Mensal é superior a 5 000,00€\",\"\")","v":""},0,{"$f":"IF('Comunicação de contratos'!Y26<=1500,\"\",IF('Comunicação de contratos'!AA26<'Comunicação de contratos'!AC26,\"Redução mensal não verificada\",\"\"))","v":""},0,{"$f":"IF('Comunicação de contratos'!U26>5000,\"O valor total anual prestador é superior a 5 000,00€\",\"\")","v":""}]
[0,{"$f":"IF(A9>0,ROW('Comunicação de contratos'!B27),\"\")","v":""},{"$f":"'Comunicação de contratos'!B27","v":""},0,{"$f":"IF('Comunicação de contratos'!AO27=\"Incompleto\",\"Existem campos por preencher\",\"\")","v":""},0,{"$f":"IF(AND('Comunicação de contratos'!C27=\"Outras prestações de serviços\",'Comunicação de contratos'!E27=\"\"),\"Modalidade Contratual não identificada\",\"\")","v":""},0,{"$f":"IF('Comunicação de contratos'!P27>5000,\"O valor global é superior a 5 000,00€\",\"\")","v":""},0,{"$f":"IF('Comunicação de contratos'!P27<=1500,\"\",IF('Comunicação de contratos'!R27<'Comunicação de contratos'!T27,\"Redução global não foi verificada\",\"\"))","v":""},0,{"$f":"IF('Comunicação de contratos'!Y27>5000,\"O valor Mensal é superior a 5 000,00€\",\"\")","v":""},0,{"$f":"IF('Comunicação de contratos'!Y27<=1500,\"\",IF('Comunicação de contratos'!AA27<'Comunicação de contratos'!AC27,\"Redução mensal não verificada\",\"\"))","v":""},0,{"$f":"IF('Comunicação de contratos'!U27>5000,\"O valor total anual prestador é superior a 5 000,00€\",\"\")","v":""}]
[0,{"$f":"IF(A10>0,ROW('Comunicação de contratos'!B28),\"\")","v":""},{"$f":"'Comunicação de contratos'!B28","v":""},0,{"$f":"IF('Comunicação de contratos'!AO28=\"Incompleto\",\"Existem campos por preencher\",\"\")","v":""},0,{"$f":"IF(AND('Comunicação de contratos'!C28=\"Outras prestações de serviços\",'Comunicação de contratos'!E28=\"\"),\"Modalidade Contratual não identificada\",\"\")","v":""},0,{"$f":"IF('Comunicação de contratos'!P28>5000,\"O valor global é superior a 5 000,00€\",\"\")","v":""},0,{"$f":"IF('Comunicação de contratos'!P28<=1500,\"\",IF('Comunicação de contratos'!R28<'Comunicação de contratos'!T28,\"Redução global não foi verificada\",\"\"))","v":""},0,{"$f":"IF('Comunicação de contratos'!Y28>5000,\"O valor Mensal é superior a 5 000,00€\",\"\")","v":""},0,{"$f":"IF('Comunicação de contratos'!Y28<=1500,\"\",IF('Comunicação de contratos'!AA28<'Comunicação de contratos'!AC28,\"Redução mensal não verificada\",\"\"))","v":""},0,{"$f":"IF('Comunicação de contratos'!U28>5000,\"O valor total anual prestador é superior a 5 000,00€\",\"\")","v":""}]
[0,{"$f":"IF(A11>0,ROW('Comunicação de contratos'!B29),\"\")","v":""},{"$f":"'Comunicação de contratos'!B29","v":""},0,{"$f":"IF('Comunicação de contratos'!AO29=\"Incompleto\",\"Existem campos por preencher\",\"\")","v":""},0,{"$f":"IF(AND('Comunicação de contratos'!C29=\"Outras prestações de serviços\",'Comunicação de contratos'!E29=\"\"),\"Modalidade Contratual não identificada\",\"\")","v":""},0,{"$f":"IF('Comunicação de contratos'!P29>5000,\"O valor global é superior a 5 000,00€\",\"\")","v":""},0,{"$f":"IF('Comunicação de contratos'!P29<=1500,\"\",IF('Comunicação de contratos'!R29<'Comunicação de contratos'!T29,\"Redução global não foi verificada\",\"\"))","v":""},0,{"$f":"IF('Comunicação de contratos'!Y29>5000,\"O valor Mensal é superior a 5 000,00€\",\"\")","v":""},0,{"$f":"IF('Comunicação de contratos'!Y29<=1500,\"\",IF('Comunicação de contratos'!AA29<'Comunicação de contratos'!AC29,\"Redução mensal não verificada\",\"\"))","v":""},0,{"$f":"IF('Comunicação de contratos'!U29>5000,\"O valor total anual prestador é superior a 5 000,00€\",\"\")","v":""}]
[0,{"$f":"IF(A12>0,ROW('Comunicação de contratos'!B30),\"\")","v":""},{"$f":"'Comunicação de contratos'!B30","v":""},0,{"$f":"IF('Comunicação de contratos'!AO30=\"Incompleto\",\"Existem campos por preencher\",\"\")","v":""},0,{"$f":"IF(AND('Comunicação de contratos'!C30=\"Outras prestações de serviços\",'Comunicação de contratos'!E30=\"\"),\"Modalidade Contratual não identificada\",\"\")","v":""},0,{"$f":"IF('Comunicação de contratos'!P30>5000,\"O valor global é superior a 5 000,00€\",\"\")","v":""},0,{"$f":"IF('Comunicação de contratos'!P30<=1500,\"\",IF('Comunicação de contratos'!R30<'Comunicação de contratos'!T30,\"Redução global não foi verificada\",\"\"))","v":""},0,{"$f":"IF('Comunicação de contratos'!Y30>5000,\"O valor Mensal é superior a 5 000,00€\",\"\")","v":""},0,{"$f":"IF('Comunicação de contratos'!Y30<=1500,\"\",IF('Comunicação de contratos'!AA30<'Comunicação de contratos'!AC30,\"Redução mensal não verificada\",\"\"))","v":""},0,{"$f":"IF('Comunicação de contratos'!U30>5000,\"O valor total anual prestador é superior a 5 000,00€\",\"\")","v":""}]
[0,{"$f":"IF(A13>0,ROW('Comunicação de contratos'!B31),\"\")","v":""},{"$f":"'Comunicação de contratos'!B31","v":""},0,{"$f":"IF('Comunicação de contratos'!AO31=\"Incompleto\",\"Existem campos por preencher\",\"\")","v":""},0,{"$f":"IF(AND('Comunicação de contratos'!C31=\"Outras prestações de serviços\",'Comunicação de contratos'!E31=\"\"),\"Modalidade Contratual não identificada\",\"\")","v":""},0,{"$f":"IF('Comunicação de contratos'!P31>5000,\"O valor global é superior a 5 000,00€\",\"\")","v":""},0,{"$f":"IF('Comunicação de contratos'!P31<=1500,\"\",IF('Comunicação de contratos'!R31<'Comunicação de contratos'!T31,\"Redução global não foi verificada\",\"\"))","v":""},0,{"$f":"IF('Comunicação de contratos'!Y31>5000,\"O valor Mensal é superior a 5 000,00€\",\"\")","v":""},0,{"$f":"IF('Comunicação de contratos'!Y31<=1500,\"\",IF('Comunicação de contratos'!AA31<'Comunicação de contratos'!AC31,\"Redução mensal não verificada\",\"\"))","v":""},0,{"$f":"IF('Comunicação de contratos'!U31>5000,\"O valor total anual prestador é superior a 5 000,00€\",\"\")","v":""}]
[0,{"$f":"IF(A14>0,ROW('Comunicação de contratos'!B32),\"\")","v":""},{"$f":"'Comunicação de contratos'!B32","v":""},0,{"$f":"IF('Comunicação de contratos'!AO32=\"Incompleto\",\"Existem campos por preencher\",\"\")","v":""},0,{"$f":"IF(AND('Comunicação de contratos'!C32=\"Outras prestações de serviços\",'Comunicação de contratos'!E32=\"\"),\"Modalidade Contratual não identificada\",\"\")","v":""},0,{"$f":"IF('Comunicação de contratos'!P32>5000,\"O valor global é superior a 5 000,00€\",\"\")","v":""},0,{"$f":"IF('Comunicação de contratos'!P32<=1500,\"\",IF('Comunicação de contratos'!R32<'Comunicação de contratos'!T32,\"Redução global não foi verificada\",\"\"))","v":""},0,{"$f":"IF('Comunicação de contratos'!Y32>5000,\"O valor Mensal é superior a 5 000,00€\",\"\")","v":""},0,{"$f":"IF('Comunicação de contratos'!Y32<=1500,\"\",IF('Comunicação de contratos'!AA32<'Comunicação de contratos'!AC32,\"Redução mensal não verificada\",\"\"))","v":""},0,{"$f":"IF('Comunicação de contratos'!U32>5000,\"O valor total anual prestador é superior a 5 000,00€\",\"\")","v":""}]
[0,{"$f":"IF(A15>0,ROW('Comunicação de contratos'!B33),\"\")","v":""},{"$f":"'Comunicação de contratos'!B33","v":""},0,{"$f":"IF('Comunicação de contratos'!AO33=\"Incompleto\",\"Existem campos por preencher\",\"\")","v":""},0,{"$f":"IF(AND('Comunicação de contratos'!C33=\"Outras prestações de serviços\",'Comunicação de contratos'!E33=\"\"),\"Modalidade Contratual não identificada\",\"\")","v":""},0,{"$f":"IF('Comunicação de contratos'!P33>5000,\"O valor global é superior a 5 000,00€\",\"\")","v":""},0,{"$f":"IF('Comunicação de contratos'!P33<=1500,\"\",IF('Comunicação de contratos'!R33<'Comunicação de contratos'!T33,\"Redução global não foi verificada\",\"\"))","v":""},0,{"$f":"IF('Comunicação de contratos'!Y33>5000,\"O valor Mensal é superior a 5 000,00€\",\"\")","v":""},0,{"$f":"IF('Comunicação de contratos'!Y33<=1500,\"\",IF('Comunicação de contratos'!AA33<'Comunicação de contratos'!AC33,\"Redução mensal não verificada\",\"\"))","v":""},0,{"$f":"IF('Comunicação de contratos'!U33>5000,\"O valor total anual prestador é superior a 5 000,00€\",\"\")","v":""}]
[0,{"$f":"IF(A16>0,ROW('Comunicação de contratos'!B34),\"\")","v":""},{"$f":"'Comunicação de contratos'!B34","v":""},0,{"$f":"IF('Comunicação de contratos'!AO34=\"Incompleto\",\"Existem campos por preencher\",\"\")","v":""},0,{"$f":"IF(AND('Comunicação de contratos'!C34=\"Outras prestações de serviços\",'Comunicação de contratos'!E34=\"\"),\"Modalidade Contratual não identificada\",\"\")","v":""},0,{"$f":"IF('Comunicação de contratos'!P34>5000,\"O valor global é superior a 5 000,00€\",\"\")","v":""},0,{"$f":"IF('Comunicação de contratos'!P34<=1500,\"\",IF('Comunicação de contratos'!R34<'Comunicação de contratos'!T34,\"Redução global não foi verificada\",\"\"))","v":""},0,{"$f":"IF('Comunicação de contratos'!Y34>5000,\"O valor Mensal é superior a 5 000,00€\",\"\")","v":""},0,{"$f":"IF('Comunicação de contratos'!Y34<=1500,\"\",IF('Comunicação de contratos'!AA34<'Comunicação de contratos'!AC34,\"Redução mensal não verificada\",\"\"))","v":""},0,{"$f":"IF('Comunicação de contratos'!U34>5000,\"O valor total anual prestador é superior a 5 000,00€\",\"\")","v":""}]
[0,{"$f":"IF(A17>0,ROW('Comunicação de contratos'!B35),\"\")","v":""},{"$f":"'Comunicação de contratos'!B35","v":""},0,{"$f":"IF('Comunicação de contratos'!AO35=\"Incompleto\",\"Existem campos por preencher\",\"\")","v":""},0,{"$f":"IF(AND('Comunicação de contratos'!C35=\"Outras prestações de serviços\",'Comunicação de contratos'!E35=\"\"),\"Modalidade Contratual não identificada\",\"\")","v":""},0,{"$f":"IF('Comunicação de contratos'!P35>5000,\"O valor global é superior a 5 000,00€\",\"\")","v":""},0,{"$f":"IF('Comunicação de contratos'!P35<=1500,\"\",IF('Comunicação de contratos'!R35<'Comunicação de contratos'!T35,\"Redução global não foi verificada\",\"\"))","v":""},0,{"$f":"IF('Comunicação de contratos'!Y35>5000,\"O valor Mensal é superior a 5 000,00€\",\"\")","v":""},0,{"$f":"IF('Comunicação de contratos'!Y35<=1500,\"\",IF('Comunicação de contratos'!AA35<'Comunicação de contratos'!AC35,\"Redução mensal não verificada\",\"\"))","v":""},0,{"$f":"IF('Comunicação de contratos'!U35>5000,\"O valor total anual prestador é superior a 5 000,00€\",\"\")","v":""}]
[0,{"$f":"IF(A18>0,ROW('Comunicação de contratos'!B36),\"\")","v":""},{"$f":"'Comunicação de contratos'!B36","v":""},0,{"$f":"IF('Comunicação de contratos'!AO36=\"Incompleto\",\"Existem campos por preencher\",\"\")","v":""},0,{"$f":"IF(AND('Comunicação de contratos'!C36=\"Outras prestações de serviços\",'Comunicação de contratos'!E36=\"\"),\"Modalidade Contratual não identificada\",\"\")","v":""},0,{"$f":"IF('Comunicação de contratos'!P36>5000,\"O valor global é superior a 5 000,00€\",\"\")","v":""},0,{"$f":"IF('Comunicação de contratos'!P36<=1500,\"\",IF('Comunicação de contratos'!R36<'Comunicação de contratos'!T36,\"Redução global não foi verificada\",\"\"))","v":""},0,{"$f":"IF('Comunicação de contratos'!Y36>5000,\"O valor Mensal é superior a 5 000,00€\",\"\")","v":""},0,{"$f":"IF('Comunicação de contratos'!Y36<=1500,\"\",IF('Comunicação de contratos'!AA36<'Comunicação de contratos'!AC36,\"Redução mensal não verificada\",\"\"))","v":""},0,{"$f":"IF('Comunicação de contratos'!U36>5000,\"O valor total anual prestador é superior a 5 000,00€\",\"\")","v":""}]
[0,{"$f":"IF(A19>0,ROW('Comunicação de contratos'!B37),\"\")","v":""},{"$f":"'Comunicação de contratos'!B37","v":""},0,{"$f":"IF('Comunicação de contratos'!AO37=\"Incompleto\",\"Existem campos por preencher\",\"\")","v":""},0,{"$f":"IF(AND('Comunicação de contratos'!C37=\"Outras prestações de serviços\",'Comunicação de contratos'!E37=\"\"),\"Modalidade Contratual não identificada\",\"\")","v":""},0,{"$f":"IF('Comunicação de contratos'!P37>5000,\"O valor global é superior a 5 000,00€\",\"\")","v":""},0,{"$f":"IF('Comunicação de contratos'!P37<=1500,\"\",IF('Comunicação de contratos'!R37<'Comunicação de contratos'!T37,\"Redução global não foi verificada\",\"\"))","v":""},0,{"$f":"IF('Comunicação de contratos'!Y37>5000,\"O valor Mensal é superior a 5 000,00€\",\"\")","v":""},0,{"$f":"IF('Comunicação de contratos'!Y37<=1500,\"\",IF('Comunicação de contratos'!AA37<'Comunicação de contratos'!AC37,\"Redução mensal não verificada\",\"\"))","v":""},0,{"$f":"IF('Comunicação de contratos'!U37>5000,\"O valor total anual prestador é superior a 5 000,00€\",\"\")","v":""}]
[0,{"$f":"IF(A20>0,ROW('Comunicação de contratos'!B38),\"\")","v":""},{"$f":"'Comunicação de contratos'!B38","v":""},0,{"$f":"IF('Comunicação de contratos'!AO38=\"Incompleto\",\"Existem campos por preencher\",\"\")","v":""},0,{"$f":"IF(AND('Comunicação de contratos'!C38=\"Outras prestações de serviços\",'Comunicação de contratos'!E38=\"\"),\"Modalidade Contratual não identificada\",\"\")","v":""},0,{"$f":"IF('Comunicação de contratos'!P38>5000,\"O valor global é superior a 5 000,00€\",\"\")","v":""},0,{"$f":"IF('Comunicação de contratos'!P38<=1500,\"\",IF('Comunicação de contratos'!R38<'Comunicação de contratos'!T38,\"Redução global não foi verificada\",\"\"))","v":""},0,{"$f":"IF('Comunicação de contratos'!Y38>5000,\"O valor Mensal é superior a 5 000,00€\",\"\")","v":""},0,{"$f":"IF('Comunicação de contratos'!Y38<=1500,\"\",IF('Comunicação de contratos'!AA38<'Comunicação de contratos'!AC38,\"Redução mensal não verificada\",\"\"))","v":""},0,{"$f":"IF('Comunicação de contratos'!U38>5000,\"O valor total anual prestador é superior a 5 000,00€\",\"\")","v":""}]
[0,{"$f":"IF(A21>0,ROW('Comunicação de contratos'!B39),\"\")","v":""},{"$f":"'Comunicação de contratos'!B39","v":""},0,{"$f":"IF('Comunicação de contratos'!AO39=\"Incompleto\",\"Existem campos por preencher\",\"\")","v":""},0,{"$f":"IF(AND('Comunicação de contratos'!C39=\"Outras prestações de serviços\",'Comunicação de contratos'!E39=\"\"),\"Modalidade Contratual não identificada\",\"\")","v":""},0,{"$f":"IF('Comunicação de contratos'!P39>5000,\"O valor global é superior a 5 000,00€\",\"\")","v":""},0,{"$f":"IF('Comunicação de contratos'!P39<=1500,\"\",IF('Comunicação de contratos'!R39<'Comunicação de contratos'!T39,\"Redução global não foi verificada\",\"\"))","v":""},0,{"$f":"IF('Comunicação de contratos'!Y39>5000,\"O valor Mensal é superior a 5 000,00€\",\"\")","v":""},0,{"$f":"IF('Comunicação de contratos'!Y39<=1500,\"\",IF('Comunicação de contratos'!AA39<'Comunicação de contratos'!AC39,\"Redução mensal não verificada\",\"\"))","v":""},0,{"$f":"IF('Comunicação de contratos'!U39>5000,\"O valor total anual prestador é superior a 5 000,00€\",\"\")","v":""}]
[0,{"$f":"IF(A22>0,ROW('Comunicação de contratos'!B40),\"\")","v":""},{"$f":"'Comunicação de contratos'!B40","v":""},0,{"$f":"IF('Comunicação de contratos'!AO40=\"Incompleto\",\"Existem campos por preencher\",\"\")","v":""},0,{"$f":"IF(AND('Comunicação de contratos'!C40=\"Outras prestações de serviços\",'Comunicação de contratos'!E40=\"\"),\"Modalidade Contratual não identificada\",\"\")","v":""},0,{"$f":"IF('Comunicação de contratos'!P40>5000,\"O valor global é superior a 5 000,00€\",\"\")","v":""},0,{"$f":"IF('Comunicação de contratos'!P40<=1500,\"\",IF('Comunicação de contratos'!R40<'Comunicação de contratos'!T40,\"Redução global não foi verificada\",\"\"))","v":""},0,{"$f":"IF('Comunicação de contratos'!Y40>5000,\"O valor Mensal é superior a 5 000,00€\",\"\")","v":""},0,{"$f":"IF('Comunicação de contratos'!Y40<=1500,\"\",IF('Comunicação de contratos'!AA40<'Comunicação de contratos'!AC40,\"Redução mensal não verificada\",\"\"))","v":""},0,{"$f":"IF('Comunicação de contratos'!U40>5000,\"O valor total anual prestador é superior a 5 000,00€\",\"\")","v":""}]
[0,{"$f":"IF(A23>0,ROW('Comunicação de contratos'!B41),\"\")","v":""},{"$f":"'Comunicação de contratos'!B41","v":""},0,{"$f":"IF('Comunicação de contratos'!AO41=\"Incompleto\",\"Existem campos por preencher\",\"\")","v":""},0,{"$f":"IF(AND('Comunicação de contratos'!C41=\"Outras prestações de serviços\",'Comunicação de contratos'!E41=\"\"),\"Modalidade Contratual não identificada\",\"\")","v":""},0,{"$f":"IF('Comunicação de contratos'!P41>5000,\"O valor global é superior a 5 000,00€\",\"\")","v":""},0,{"$f":"IF('Comunicação de contratos'!P41<=1500,\"\",IF('Comunicação de contratos'!R41<'Comunicação de contratos'!T41,\"Redução global não foi verificada\",\"\"))","v":""},0,{"$f":"IF('Comunicação de contratos'!Y41>5000,\"O valor Mensal é superior a 5 000,00€\",\"\")","v":""},0,{"$f":"IF('Comunicação de contratos'!Y41<=1500,\"\",IF('Comunicação de contratos'!AA41<'Comunicação de contratos'!AC41,\"Redução mensal não verificada\",\"\"))","v":""},0,{"$f":"IF('Comunicação de contratos'!U41>5000,\"O valor total anual prestador é superior a 5 000,00€\",\"\")","v":""}]
[0,{"$f":"IF(A24>0,ROW('Comunicação de contratos'!B42),\"\")","v":""},{"$f":"'Comunicação de contratos'!B42","v":""},0,{"$f":"IF('Comunicação de contratos'!AO42=\"Incompleto\",\"Existem campos por preencher\",\"\")","v":""},0,{"$f":"IF(AND('Comunicação de contratos'!C42=\"Outras prestações de serviços\",'Comunicação de contratos'!E42=\"\"),\"Modalidade Contratual não identificada\",\"\")","v":""},0,{"$f":"IF('Comunicação de contratos'!P42>5000,\"O valor global é superior a 5 000,00€\",\"\")","v":""},0,{"$f":"IF('Comunicação de contratos'!P42<=1500,\"\",IF('Comunicação de contratos'!R42<'Comunicação de contratos'!T42,\"Redução global não foi verificada\",\"\"))","v":""},0,{"$f":"IF('Comunicação de contratos'!Y42>5000,\"O valor Mensal é superior a 5 000,00€\",\"\")","v":""},0,{"$f":"IF('Comunicação de contratos'!Y42<=1500,\"\",IF('Comunicação de contratos'!AA42<'Comunicação de contratos'!AC42,\"Redução mensal não verificada\",\"\"))","v":""},0,{"$f":"IF('Comunicação de contratos'!U42>5000,\"O valor total anual prestador é superior a 5 000,00€\",\"\")","v":""}]
[0,{"$f":"IF(A25>0,ROW('Comunicação de contratos'!B43),\"\")","v":""},{"$f":"'Comunicação de contratos'!B43","v":""},0,{"$f":"IF('Comunicação de contratos'!AO43=\"Incompleto\",\"Existem campos por preencher\",\"\")","v":""},0,{"$f":"IF(AND('Comunicação de contratos'!C43=\"Outras prestações de serviços\",'Comunicação de contratos'!E43=\"\"),\"Modalidade Contratual não identificada\",\"\")","v":""},0,{"$f":"IF('Comunicação de contratos'!P43>5000,\"O valor global é superior a 5 000,00€\",\"\")","v":""},0,{"$f":"IF('Comunicação de contratos'!P43<=1500,\"\",IF('Comunicação de contratos'!R43<'Comunicação de contratos'!T43,\"Redução global não foi verificada\",\"\"))","v":""},0,{"$f":"IF('Comunicação de contratos'!Y43>5000,\"O valor Mensal é superior a 5 000,00€\",\"\")","v":""},0,{"$f":"IF('Comunicação de contratos'!Y43<=1500,\"\",IF('Comunicação de contratos'!AA43<'Comunicação de contratos'!AC43,\"Redução mensal não verificada\",\"\"))","v":""},0,{"$f":"IF('Comunicação de contratos'!U43>5000,\"O valor total anual prestador é superior a 5 000,00€\",\"\")","v":""}]
[0,{"$f":"IF(A26>0,ROW('Comunicação de contratos'!B44),\"\")","v":""},{"$f":"'Comunicação de contratos'!B44","v":""},0,{"$f":"IF('Comunicação de contratos'!AO44=\"Incompleto\",\"Existem campos por preencher\",\"\")","v":""},0,{"$f":"IF(AND('Comunicação de contratos'!C44=\"Outras prestações de serviços\",'Comunicação de contratos'!E44=\"\"),\"Modalidade Contratual não identificada\",\"\")","v":""},0,{"$f":"IF('Comunicação de contratos'!P44>5000,\"O valor global é superior a 5 000,00€\",\"\")","v":""},0,{"$f":"IF('Comunicação de contratos'!P44<=1500,\"\",IF('Comunicação de contratos'!R44<'Comunicação de contratos'!T44,\"Redução global não foi verificada\",\"\"))","v":""},0,{"$f":"IF('Comunicação de contratos'!Y44>5000,\"O valor Mensal é superior a 5 000,00€\",\"\")","v":""},0,{"$f":"IF('Comunicação de contratos'!Y44<=1500,\"\",IF('Comunicação de contratos'!AA44<'Comunicação de contratos'!AC44,\"Redução mensal não verificada\",\"\"))","v":""},0,{"$f":"IF('Comunicação de contratos'!U44>5000,\"O valor total anual prestador é superior a 5 000,00€\",\"\")","v":""}]
[0,{"$f":"IF(A27>0,ROW('Comunicação de contratos'!B45),\"\")","v":""},{"$f":"'Comunicação de contratos'!B45","v":""},0,{"$f":"IF('Comunicação de contratos'!AO45=\"Incompleto\",\"Existem campos por preencher\",\"\")","v":""},0,{"$f":"IF(AND('Comunicação de contratos'!C45=\"Outras prestações de serviços\",'Comunicação de contratos'!E45=\"\"),\"Modalidade Contratual não identificada\",\"\")","v":""},0,{"$f":"IF('Comunicação de contratos'!P45>5000,\"O valor global é superior a 5 000,00€\",\"\")","v":""},0,{"$f":"IF('Comunicação de contratos'!P45<=1500,\"\",IF('Comunicação de contratos'!R45<'Comunicação de contratos'!T45,\"Redução global não foi verificada\",\"\"))","v":""},0,{"$f":"IF('Comunicação de contratos'!Y45>5000,\"O valor Mensal é superior a 5 000,00€\",\"\")","v":""},0,{"$f":"IF('Comunicação de contratos'!Y45<=1500,\"\",IF('Comunicação de contratos'!AA45<'Comunicação de contratos'!AC45,\"Redução mensal não verificada\",\"\"))","v":""},0,{"$f":"IF('Comunicação de contratos'!U45>5000,\"O valor total anual prestador é superior a 5 000,00€\",\"\")","v":""}]
[0,{"$f":"IF(A28>0,ROW('Comunicação de contratos'!B46),\"\")","v":""},{"$f":"'Comunicação de contratos'!B46","v":""},0,{"$f":"IF('Comunicação de contratos'!AO46=\"Incompleto\",\"Existem campos por preencher\",\"\")","v":""},0,{"$f":"IF(AND('Comunicação de contratos'!C46=\"Outras prestações de serviços\",'Comunicação de contratos'!E46=\"\"),\"Modalidade Contratual não identificada\",\"\")","v":""},0,{"$f":"IF('Comunicação de contratos'!P46>5000,\"O valor global é superior a 5 000,00€\",\"\")","v":""},0,{"$f":"IF('Comunicação de contratos'!P46<=1500,\"\",IF('Comunicação de contratos'!R46<'Comunicação de contratos'!T46,\"Redução global não foi verificada\",\"\"))","v":""},0,{"$f":"IF('Comunicação de contratos'!Y46>5000,\"O valor Mensal é superior a 5 000,00€\",\"\")","v":""},0,{"$f":"IF('Comunicação de contratos'!Y46<=1500,\"\",IF('Comunicação de contratos'!AA46<'Comunicação de contratos'!AC46,\"Redução mensal não verificada\",\"\"))","v":""},0,{"$f":"IF('Comunicação de contratos'!U46>5000,\"O valor total anual prestador é superior a 5 000,00€\",\"\")","v":""}]
[0,{"$f":"IF(A29>0,ROW('Comunicação de contratos'!B47),\"\")","v":""},{"$f":"'Comunicação de contratos'!B47","v":""},0,{"$f":"IF('Comunicação de contratos'!AO47=\"Incompleto\",\"Existem campos por preencher\",\"\")","v":""},0,{"$f":"IF(AND('Comunicação de contratos'!C47=\"Outras prestações de serviços\",'Comunicação de contratos'!E47=\"\"),\"Modalidade Contratual não identificada\",\"\")","v":""},0,{"$f":"IF('Comunicação de contratos'!P47>5000,\"O valor global é superior a 5 000,00€\",\"\")","v":""},0,{"$f":"IF('Comunicação de contratos'!P47<=1500,\"\",IF('Comunicação de contratos'!R47<'Comunicação de contratos'!T47,\"Redução global não foi verificada\",\"\"))","v":""},0,{"$f":"IF('Comunicação de contratos'!Y47>5000,\"O valor Mensal é superior a 5 000,00€\",\"\")","v":""},0,{"$f":"IF('Comunicação de contratos'!Y47<=1500,\"\",IF('Comunicação de contratos'!AA47<'Comunicação de contratos'!AC47,\"Redução mensal não verificada\",\"\"))","v":""},0,{"$f":"IF('Comunicação de contratos'!U47>5000,\"O valor total anual prestador é superior a 5 000,00€\",\"\")","v":""}]
[0,{"$f":"IF(A30>0,ROW('Comunicação de contratos'!B48),\"\")","v":""},{"$f":"'Comunicação de contratos'!B48","v":""},0,{"$f":"IF('Comunicação de contratos'!AO48=\"Incompleto\",\"Existem campos por preencher\",\"\")","v":""},0,{"$f":"IF(AND('Comunicação de contratos'!C48=\"Outras prestações de serviços\",'Comunicação de contratos'!E48=\"\"),\"Modalidade Contratual não identificada\",\"\")","v":""},0,{"$f":"IF('Comunicação de contratos'!P48>5000,\"O valor global é superior a 5 000,00€\",\"\")","v":""},0,{"$f":"IF('Comunicação de contratos'!P48<=1500,\"\",IF('Comunicação de contratos'!R48<'Comunicação de contratos'!T48,\"Redução global não foi verificada\",\"\"))","v":""},0,{"$f":"IF('Comunicação de contratos'!Y48>5000,\"O valor Mensal é superior a 5 000,00€\",\"\")","v":""},0,{"$f":"IF('Comunicação de contratos'!Y48<=1500,\"\",IF('Comunicação de contratos'!AA48<'Comunicação de contratos'!AC48,\"Redução mensal não verificada\",\"\"))","v":""},0,{"$f":"IF('Comunicação de contratos'!U48>5000,\"O valor total anual prestador é superior a 5 000,00€\",\"\")","v":""}]
[0,{"$f":"IF(A31>0,ROW('Comunicação de contratos'!B49),\"\")","v":""},{"$f":"'Comunicação de contratos'!B49","v":""},0,{"$f":"IF('Comunicação de contratos'!AO49=\"Incompleto\",\"Existem campos por preencher\",\"\")","v":""},0,{"$f":"IF(AND('Comunicação de contratos'!C49=\"Outras prestações de serviços\",'Comunicação de contratos'!E49=\"\"),\"Modalidade Contratual não identificada\",\"\")","v":""},0,{"$f":"IF('Comunicação de contratos'!P49>5000,\"O valor global é superior a 5 000,00€\",\"\")","v":""},0,{"$f":"IF('Comunicação de contratos'!P49<=1500,\"\",IF('Comunicação de contratos'!R49<'Comunicação de contratos'!T49,\"Redução global não foi verificada\",\"\"))","v":""},0,{"$f":"IF('Comunicação de contratos'!Y49>5000,\"O valor Mensal é superior a 5 000,00€\",\"\")","v":""},0,{"$f":"IF('Comunicação de contratos'!Y49<=1500,\"\",IF('Comunicação de contratos'!AA49<'Comunicação de contratos'!AC49,\"Redução mensal não verificada\",\"\"))","v":""},0,{"$f":"IF('Comunicação de contratos'!U49>5000,\"O valor total anual prestador é superior a 5 000,00€\",\"\")","v":""}]